{"text_format":"3","workbook":"xlsx","n_sheets":4,"sheets":["Sākums","PROJEKTA PARAMETRI","INFORMĀCIJA PAR PROJEKTU","PROJEKTA KOPSUMMAS"],"not_rendered":{"charts":2,"defined_names":3,"pivot_tables":1},"read":"whole","date_system":"1900"}

{"sheet":"Sākums","index":0,"n_rows":8,"n_cols":2,"rows_kept":8}
[null,"PAR ŠO VEIDNI"]
[]
[null,"Izmantojiet šo darbgrāmatu, lai sekotu līdzi projekta parametri, detalizētai informācija par projektu un projekta kopsummas, veicot Projektu plānošana juridiskajiem uzņēmumiem."]
[null,"Ievadiet uzņēmuma nosaukums darblapā Projekta parametri un tas tiks automātiski atjaunināts citās darblapās."]
[null,"Ievadiet informāciju darblapā Projekta parametri, lai atjauninātu stabiņu diagrammu, un darblapā Detalizēta informācija par projektu. Rakurstabula projekta kopsummas darblapā tiek automātiski atjaunināta."]
[null,"Piezīme.  "]
[null,"Papildu norādījumi ir sniegti kolonnā A katrā darblapā. Šis teksts ir paslēpts ar nolūku. Lai tekstu noņemtu, atlasiet kolonnu A, pēc tam atlasiet DZĒST. Lai parādītu slēpto tekstu, atlasiet kolonnu A, pēc tam nomainiet fonta krāsu."]
[null,"Lai iegūtu papildinformāciju par tabulām darblapās, nospiediet taustiņu SHIFT un pēc tam F10 tabulā, atlasiet opciju TABULA un pēc tam atlasiet ALTERNATĪVAIS TEKSTS. Attiecībā uz rakurstabulu projekta kopsummu darblapā, nospiediet taustiņu SHIFT un pēc tam F10 tabulā, atlasiet RAKURSTABULAS OPCIJAS un pēc tam atlasiet cilni ALTERNATĪVAIS TEKSTS."]

{"sheet":"PROJEKTA PARAMETRI","index":1,"n_rows":19,"n_cols":9,"rows_kept":19}
["Šajā darblapā izveidojiet projekta parametri. Šūnā pa labi ievadiet uzņēmuma nosaukums. Šīs kolonnas šūnās ir noderīgi norādījumi.","Uzņēmuma nosaukums"]
["Šīs darblapas nosaukums ir šūnā pa labi.","Projektu plānošana juridiskajiem uzņēmumiem"]
["Konfidencialitātes ziņojums ir šūnā pa labi.",{"$f":"B1&\" , konfidenciāli\"","v":"Uzņēmuma nosaukums , konfidenciāli"}]
["Šūnā pa labi ir padoms.","Ieēnotās šūnas ir aprēķinātas jūsu vietā. Nav nepieciešams tajās neko ievadīt."]
["Ievadiet detalizētu informāciju parametru tabulā, sākot no šūnas pa labi. Nākamais norādījums ir šūnā A12.","PROJEKTA VEIDS","VISPĀRĪGS PARTNERIS","UZŅĒMUMA JURISTS","AIZSARDZĪBAS ADVOKĀTS","INTELEKTUĀLĀ ĪPAŠUMA JURISTS","BANKROTA JURISTS","ADMINISTRATĪVIE DARBINIEKI","Kopsumma"]
[null,"Uzņēmuma iekļaušana",{"v":0.1,"d":"10%"},{"v":0.4,"d":"40%"},{"v":0,"d":"0%"},{"v":0,"d":"0%"},{"v":0,"d":"0%"},{"v":0.5,"d":"50%"},{"$f":"SUM(Parametri[[#This Row],[VISPĀRĪGS PARTNERIS]:[ADMINISTRATĪVIE DARBINIEKI]])","v":{"v":1,"d":"100%"}}]
[null,"Uzņēmuma iegūšana",{"v":0.1,"d":"10%"},{"v":0.4,"d":"40%"},{"v":0,"d":"0%"},{"v":0.1,"d":"10%"},{"v":0,"d":"0%"},{"v":0.4,"d":"40%"},{"$f":"SUM(Parametri[[#This Row],[VISPĀRĪGS PARTNERIS]:[ADMINISTRATĪVIE DARBINIEKI]])","v":{"v":1,"d":"100%"}}]
[null,"Produktatbildības aizsardzība",{"v":0.2,"d":"20%"},{"v":0,"d":"0%"},{"v":0.5,"d":"50%"},{"v":0,"d":"0%"},{"v":0,"d":"0%"},{"v":0.3,"d":"30%"},{"$f":"SUM(Parametri[[#This Row],[VISPĀRĪGS PARTNERIS]:[ADMINISTRATĪVIE DARBINIEKI]])","v":{"v":1,"d":"100%"}}]
[null,"Patenta pieteikums",{"v":0.1,"d":"10%"},{"v":0,"d":"0%"},{"v":0,"d":"0%"},{"v":0.6,"d":"60%"},{"v":0,"d":"0%"},{"v":0.3,"d":"30%"},{"$f":"SUM(Parametri[[#This Row],[VISPĀRĪGS PARTNERIS]:[ADMINISTRATĪVIE DARBINIEKI]])","v":{"v":1,"d":"100%"}}]
[null,"Darbinieka tiesas process",{"v":0.2,"d":"20%"},{"v":0.1,"d":"10%"},{"v":0.4,"d":"40%"},{"v":0,"d":"0%"},{"v":0,"d":"0%"},{"v":0.3,"d":"30%"},{"$f":"SUM(Parametri[[#This Row],[VISPĀRĪGS PARTNERIS]:[ADMINISTRATĪVIE DARBINIEKI]])","v":{"v":1,"d":"100%"}}]
[null,"Bankrots",{"v":0.1,"d":"10%"},{"v":0.2,"d":"20%"},{"v":0,"d":"0%"},{"v":0,"d":"0%"},{"v":0.4,"d":"40%"},{"v":0.3,"d":"30%"},{"$f":"SUM(Parametri[[#This Row],[VISPĀRĪGS PARTNERIS]:[ADMINISTRATĪVIE DARBINIEKI]])","v":{"v":1,"d":"100%"}}]
["Šūnās pa labi ievadiet jauktās procentu likmes, no šūnas C12 līdz šūnai H12. Nākamais norādījums ir šūnā A14.","Jauktās procentu likmes",{"v":350,"d":"350 EUR"},{"v":250,"d":"250 EUR"},{"v":300,"d":"300 EUR"},{"v":275,"d":"275 EUR"},{"v":225,"d":"225 EUR"},{"v":125,"d":"125 EUR"}]
[]
["Stabiņu diagramma, kurā parādīts plānoto izmaksu salīdzinājums ar faktiskajām, ir šūnā pa labi, un šūnā F14 ir stabiņu diagramma, kurā plānotās stundas parādītas salīdzinājumā ar faktiskajām."]
[null,null,"VISPĀRĪGS PARTNERIS","UZŅĒMUMS","AIZSARDZĪBAS ADVOKĀTS","INTELEKTUĀLAIS ĪP.","BANKROTS","ADMINISTRATĪVIE DARBINIEKI"]
[null,"PLĀNOTĀS IZMAKSAS",{"$f":"SUBTOTAL(109,Informācija[VISPĀRĪGS PARTNERIS])","v":{"v":78750,"d":"78,750.00 €"}},{"$f":"SUBTOTAL(109,Informācija[UZŅĒMUMA JURISTS])","v":{"v":66250,"d":"66,250.00 €"}},{"$f":"SUBTOTAL(109,Informācija[AIZSARDZĪBAS ADVOKĀTS])","v":{"v":105000,"d":"105,000.00 €"}},{"$f":"SUBTOTAL(109,Informācija[INTELEKTUĀLĀ ĪPAŠUMA JURISTS])","v":{"v":35750,"d":"35,750.00 €"}},{"$f":"SUBTOTAL(109,Informācija[BANKROTA JURISTS])","v":{"v":0,"d":"0.00 €"}},{"$f":"SUBTOTAL(109,Informācija[ADMINISTRATĪVIE DARBINIEKI])","v":{"v":66250,"d":"66,250.00 €"}}]
[null,"FAKTISKĀS IZMAKSAS",{"$f":"SUBTOTAL(109,Informācija[VISPĀRĪGS PARTNERIS 2])","v":{"v":79275,"d":"79,275.00 €"}},{"$f":"SUBTOTAL(109,Informācija[UZŅĒMUMA JURISTS 2])","v":{"v":67375,"d":"67,375.00 €"}},{"$f":"SUBTOTAL(109,Informācija[AIZSARDZĪBAS ADVOKĀTS 2])","v":{"v":105600,"d":"105,600.00 €"}},{"$f":"SUBTOTAL(109,Informācija[INTELEKTUĀLĀ ĪPAŠUMA JURISTS 2])","v":{"v":34650,"d":"34,650.00 €"}},{"$f":"SUBTOTAL(109,Informācija[BANKROTA JURISTS 2])","v":{"v":0,"d":"0.00 €"}},{"$f":"SUBTOTAL(109,Informācija[ADMINISTRATĪVIE DARBINIEKI 2])","v":{"v":67000,"d":"67,000.00 €"}}]
[null,"PLĀNOTĀS STUNDAS",{"$f":"C16/$C$12","v":{"v":225,"d":"225.00"}},{"$f":"D16/$C$12","v":{"v":189.28571428571428,"d":"189.29"}},{"v":300,"d":"300.00"},{"v":102.14285714285714,"d":"102.14"},{"v":0,"d":"0.00"},{"v":189.28571428571428,"d":"189.29"}]
[null,"FAKTISKĀS STUNDAS",{"$f":"C17/$C$12","v":{"v":226.5,"d":"226.50"}},{"$f":"D17/$C$12","v":{"v":192.5,"d":"192.50"}},{"$f":"E17/$C$12","v":{"v":301.7142857142857,"d":"301.71"}},{"$f":"F17/$C$12","v":{"v":99,"d":"99.00"}},{"$f":"G17/$C$12","v":{"v":0,"d":"0.00"}},{"$f":"H17/$C$12","v":{"v":191.42857142857142,"d":"191.43"}}]

{"sheet":"INFORMĀCIJA PAR PROJEKTU","index":2,"n_rows":10,"n_cols":25,"rows_kept":10,"merged":[[1,24,8,28]]}
["Šajā darblapā izveidojiet detalizētu informācija par projektu. Šūnā pa labi tiek automātiski atjaunināts uzņēmuma nosaukums. Šīs kolonnas šūnās ir noderīgi norādījumi. Bultiņa uz leju, lai sāktu darbu.",{"$f":"'PROJEKTA PARAMETRI'!B1","v":"Uzņēmuma nosaukums"}]
["Šūnā pa labi ir šīs darblapas virsraksts un informatīvais padoms ir šūnā Y2.",{"$f":"'PROJEKTA PARAMETRI'!B2","v":"Projektu plānošana juridiskajiem uzņēmumiem"},{"$nulls":22},"INFORMĀCIJA.\nLai pievienotu rindu, atlasiet pašu pēdējo tabulas šūnu labajā pusē (nevis kopsummas rindu) un nospiediet tabulēšanas taustiņu, vai arī tabulā nospiediet taustiņu SHIFT un pēc tam nospiediet taustiņu F10, kur vēlaties ievietot rindu, un atlasiet Ievietot | Tabulas rindas Augstāk/Tabulas rinda zemāk.\nNodrošiniet, lai visas neizmantotās rindas būtu izdzēstas, jo projekta kopsummas rakurstabula izmanto visas tabulas šūnas un pretējā gadījumā rezultāti būtu kļūdaini."]
["Konfidencialitātes ziņojums ir šūnā pa labi.",{"$f":"'PROJEKTA PARAMETRI'!B3","v":"Uzņēmuma nosaukums , konfidenciāli"}]
["Ievadiet informāciju tabulā Detalizēta informācija, sākot no šūnas pa labi. Projekta veids detalizētas informācijas tabulas labajā pusē tiek automātiski atjaunināti no tabulas Parametri darblapā Projekta parametri.","PROJEKTA NOSAUKUMS","PROJEKTA VEIDS","PLĀNOTAIS SĀKUMS","PLĀNOTĀS BEIGAS","FAKTISKAIS SĀKUMS","FAKTISKĀS BEIGAS","PLĀNOTAIS DARBS","FAKTISKAIS DARBS","PLĀNOTAIS ILGUMS","FAKTISKAIS ILGUMS","VISPĀRĪGS PARTNERIS","UZŅĒMUMA JURISTS","AIZSARDZĪBAS ADVOKĀTS","INTELEKTUĀLĀ ĪPAŠUMA JURISTS","BANKROTA JURISTS","ADMINISTRATĪVIE DARBINIEKI","VISPĀRĪGS PARTNERIS 2","UZŅĒMUMA JURISTS 2","AIZSARDZĪBAS ADVOKĀTS 2","INTELEKTUĀLĀ ĪPAŠUMA JURISTS 2","BANKROTA JURISTS 2","ADMINISTRATĪVIE DARBINIEKI 2"]
[null,"1. projekts","Uzņēmuma iekļaušana",{"$f":"TODAY()","v":"2019-02-20"},{"$f":"TODAY()+60","v":"2019-04-21"},{"$f":"TODAY()+10","v":"2019-03-02"},{"$f":"TODAY()+65","v":"2019-04-26"},200,220,{"$f":"DAYS360(Informācija[[#This Row],[PLĀNOTAIS SĀKUMS]],Informācija[[#This Row],[PLĀNOTĀS BEIGAS]],FALSE)","v":61},{"$f":"DAYS360(Informācija[[#This Row],[FAKTISKAIS SĀKUMS]],Informācija[[#This Row],[FAKTISKĀS BEIGAS]],FALSE)","v":54},{"$f":"INDEX(Parametri[],MATCH(Informācija[[#This Row],[PROJEKTA VEIDS]],Parametri[PROJEKTA VEIDS],0),MATCH(Informācija[[#Headers],[VISPĀRĪGS PARTNERIS]],Parametri[#Headers],0))*INDEX('PROJEKTA PARAMETRI'!$B$12:$H$12,1,MATCH(Informācija[[#Headers],[VISPĀRĪGS PARTNERIS]],Parametri[#Headers],0))*Informācija[[#This Row],[PLĀNOTAIS DARBS]]","v":{"v":7000,"d":"7,000 EUR"}},{"$f":"INDEX(Parametri[],MATCH(Informācija[[#This Row],[PROJEKTA VEIDS]],Parametri[PROJEKTA VEIDS],0),MATCH(Informācija[[#Headers],[UZŅĒMUMA JURISTS]],Parametri[#Headers],0))*INDEX('PROJEKTA PARAMETRI'!$B$12:$H$12,1,MATCH(Informācija[[#Headers],[UZŅĒMUMA JURISTS]],Parametri[#Headers],0))*Informācija[[#This Row],[PLĀNOTAIS DARBS]]","v":{"v":20000,"d":"20,000 EUR"}},{"$f":"INDEX(Parametri[],MATCH(Informācija[[#This Row],[PROJEKTA VEIDS]],Parametri[PROJEKTA VEIDS],0),MATCH(Informācija[[#Headers],[AIZSARDZĪBAS ADVOKĀTS]],Parametri[#Headers],0))*INDEX('PROJEKTA PARAMETRI'!$B$12:$H$12,1,MATCH(Informācija[[#Headers],[AIZSARDZĪBAS ADVOKĀTS]],Parametri[#Headers],0))*Informācija[[#This Row],[PLĀNOTAIS DARBS]]","v":{"v":0,"d":"0 EUR"}},{"$f":"INDEX(Parametri[],MATCH(Informācija[[#This Row],[PROJEKTA VEIDS]],Parametri[PROJEKTA VEIDS],0),MATCH(Informācija[[#Headers],[INTELEKTUĀLĀ ĪPAŠUMA JURISTS]],Parametri[#Headers],0))*INDEX('PROJEKTA PARAMETRI'!$B$12:$H$12,1,MATCH(Informācija[[#Headers],[INTELEKTUĀLĀ ĪPAŠUMA JURISTS]],Parametri[#Headers],0))*Informācija[[#This Row],[PLĀNOTAIS DARBS]]","v":{"v":0,"d":"0 EUR"}},{"$f":"INDEX(Parametri[],MATCH(Informācija[[#This Row],[PROJEKTA VEIDS]],Parametri[PROJEKTA VEIDS],0),MATCH(Informācija[[#Headers],[BANKROTA JURISTS]],Parametri[#Headers],0))*INDEX('PROJEKTA PARAMETRI'!$B$12:$H$12,1,MATCH(Informācija[[#Headers],[BANKROTA JURISTS]],Parametri[#Headers],0))*Informācija[[#This Row],[PLĀNOTAIS DARBS]]","v":{"v":0,"d":"0 EUR"}},{"$f":"INDEX(Parametri[],MATCH(Informācija[[#This Row],[PROJEKTA VEIDS]],Parametri[PROJEKTA VEIDS],0),MATCH(Informācija[[#Headers],[ADMINISTRATĪVIE DARBINIEKI]],Parametri[#Headers],0))*INDEX('PROJEKTA PARAMETRI'!$B$12:$H$12,1,MATCH(Informācija[[#Headers],[ADMINISTRATĪVIE DARBINIEKI]],Parametri[#Headers],0))*Informācija[[#This Row],[PLĀNOTAIS DARBS]]","v":{"v":12500,"d":"12,500 EUR"}},{"$f":"INDEX(Parametri[],MATCH(Informācija[[#This Row],[PROJEKTA VEIDS]],Parametri[PROJEKTA VEIDS],0),MATCH(Informācija[[#Headers],[VISPĀRĪGS PARTNERIS]],Parametri[#Headers],0))*INDEX('PROJEKTA PARAMETRI'!$B$12:$H$12,1,MATCH(Informācija[[#Headers],[VISPĀRĪGS PARTNERIS]],Parametri[#Headers],0))*Informācija[[#This Row],[FAKTISKAIS DARBS]]","v":{"v":7700,"d":"7,700 EUR"}},{"$f":"INDEX(Parametri[],MATCH(Informācija[[#This Row],[PROJEKTA VEIDS]],Parametri[PROJEKTA VEIDS],0),MATCH(Informācija[[#Headers],[UZŅĒMUMA JURISTS]],Parametri[#Headers],0))*INDEX('PROJEKTA PARAMETRI'!$B$12:$H$12,1,MATCH(Informācija[[#Headers],[UZŅĒMUMA JURISTS]],Parametri[#Headers],0))*Informācija[[#This Row],[FAKTISKAIS DARBS]]","v":{"v":22000,"d":"22,000 EUR"}},{"$f":"INDEX(Parametri[],MATCH(Informācija[[#This Row],[PROJEKTA VEIDS]],Parametri[PROJEKTA VEIDS],0),MATCH(Informācija[[#Headers],[AIZSARDZĪBAS ADVOKĀTS]],Parametri[#Headers],0))*INDEX('PROJEKTA PARAMETRI'!$B$12:$H$12,1,MATCH(Informācija[[#Headers],[AIZSARDZĪBAS ADVOKĀTS]],Parametri[#Headers],0))*Informācija[[#This Row],[FAKTISKAIS DARBS]]","v":{"v":0,"d":"0 EUR"}},{"$f":"INDEX(Parametri[],MATCH(Informācija[[#This Row],[PROJEKTA VEIDS]],Parametri[PROJEKTA VEIDS],0),MATCH(Informācija[[#Headers],[INTELEKTUĀLĀ ĪPAŠUMA JURISTS]],Parametri[#Headers],0))*INDEX('PROJEKTA PARAMETRI'!$B$12:$H$12,1,MATCH(Informācija[[#Headers],[INTELEKTUĀLĀ ĪPAŠUMA JURISTS]],Parametri[#Headers],0))*Informācija[[#This Row],[FAKTISKAIS DARBS]]","v":{"v":0,"d":"0 EUR"}},{"$f":"INDEX(Parametri[],MATCH(Informācija[[#This Row],[PROJEKTA VEIDS]],Parametri[PROJEKTA VEIDS],0),MATCH(Informācija[[#Headers],[BANKROTA JURISTS]],Parametri[#Headers],0))*INDEX('PROJEKTA PARAMETRI'!$B$12:$H$12,1,MATCH(Informācija[[#Headers],[BANKROTA JURISTS]],Parametri[#Headers],0))*Informācija[[#This Row],[FAKTISKAIS DARBS]]","v":{"v":0,"d":"0 EUR"}},{"$f":"INDEX(Parametri[],MATCH(Informācija[[#This Row],[PROJEKTA VEIDS]],Parametri[PROJEKTA VEIDS],0),MATCH(Informācija[[#Headers],[ADMINISTRATĪVIE DARBINIEKI]],Parametri[#Headers],0))*INDEX('PROJEKTA PARAMETRI'!$B$12:$H$12,1,MATCH(Informācija[[#Headers],[ADMINISTRATĪVIE DARBINIEKI]],Parametri[#Headers],0))*Informācija[[#This Row],[FAKTISKAIS DARBS]]","v":{"v":13750,"d":"13,750 EUR"}}]
[null,"2. projekts","Uzņēmuma iegūšana",{"$f":"TODAY()+30","v":"2019-03-22"},{"$f":"TODAY()+100","v":"2019-05-31"},{"$f":"TODAY()+40","v":"2019-04-01"},{"$f":"TODAY()+110","v":"2019-06-10"},400,390,{"$f":"DAYS360(Informācija[[#This Row],[PLĀNOTAIS SĀKUMS]],Informācija[[#This Row],[PLĀNOTĀS BEIGAS]],FALSE)","v":69},{"$f":"DAYS360(Informācija[[#This Row],[FAKTISKAIS SĀKUMS]],Informācija[[#This Row],[FAKTISKĀS BEIGAS]],FALSE)","v":69},{"$f":"INDEX(Parametri[],MATCH(Informācija[[#This Row],[PROJEKTA VEIDS]],Parametri[PROJEKTA VEIDS],0),MATCH(Informācija[[#Headers],[VISPĀRĪGS PARTNERIS]],Parametri[#Headers],0))*INDEX('PROJEKTA PARAMETRI'!$B$12:$H$12,1,MATCH(Informācija[[#Headers],[VISPĀRĪGS PARTNERIS]],Parametri[#Headers],0))*Informācija[[#This Row],[PLĀNOTAIS DARBS]]","v":{"v":14000,"d":"14,000 EUR"}},{"$f":"INDEX(Parametri[],MATCH(Informācija[[#This Row],[PROJEKTA VEIDS]],Parametri[PROJEKTA VEIDS],0),MATCH(Informācija[[#Headers],[UZŅĒMUMA JURISTS]],Parametri[#Headers],0))*INDEX('PROJEKTA PARAMETRI'!$B$12:$H$12,1,MATCH(Informācija[[#Headers],[UZŅĒMUMA JURISTS]],Parametri[#Headers],0))*Informācija[[#This Row],[PLĀNOTAIS DARBS]]","v":{"v":40000,"d":"40,000 EUR"}},{"$f":"INDEX(Parametri[],MATCH(Informācija[[#This Row],[PROJEKTA VEIDS]],Parametri[PROJEKTA VEIDS],0),MATCH(Informācija[[#Headers],[AIZSARDZĪBAS ADVOKĀTS]],Parametri[#Headers],0))*INDEX('PROJEKTA PARAMETRI'!$B$12:$H$12,1,MATCH(Informācija[[#Headers],[AIZSARDZĪBAS ADVOKĀTS]],Parametri[#Headers],0))*Informācija[[#This Row],[PLĀNOTAIS DARBS]]","v":{"v":0,"d":"0 EUR"}},{"$f":"INDEX(Parametri[],MATCH(Informācija[[#This Row],[PROJEKTA VEIDS]],Parametri[PROJEKTA VEIDS],0),MATCH(Informācija[[#Headers],[INTELEKTUĀLĀ ĪPAŠUMA JURISTS]],Parametri[#Headers],0))*INDEX('PROJEKTA PARAMETRI'!$B$12:$H$12,1,MATCH(Informācija[[#Headers],[INTELEKTUĀLĀ ĪPAŠUMA JURISTS]],Parametri[#Headers],0))*Informācija[[#This Row],[PLĀNOTAIS DARBS]]","v":{"v":11000,"d":"11,000 EUR"}},{"$f":"INDEX(Parametri[],MATCH(Informācija[[#This Row],[PROJEKTA VEIDS]],Parametri[PROJEKTA VEIDS],0),MATCH(Informācija[[#Headers],[BANKROTA JURISTS]],Parametri[#Headers],0))*INDEX('PROJEKTA PARAMETRI'!$B$12:$H$12,1,MATCH(Informācija[[#Headers],[BANKROTA JURISTS]],Parametri[#Headers],0))*Informācija[[#This Row],[PLĀNOTAIS DARBS]]","v":{"v":0,"d":"0 EUR"}},{"$f":"INDEX(Parametri[],MATCH(Informācija[[#This Row],[PROJEKTA VEIDS]],Parametri[PROJEKTA VEIDS],0),MATCH(Informācija[[#Headers],[ADMINISTRATĪVIE DARBINIEKI]],Parametri[#Headers],0))*INDEX('PROJEKTA PARAMETRI'!$B$12:$H$12,1,MATCH(Informācija[[#Headers],[ADMINISTRATĪVIE DARBINIEKI]],Parametri[#Headers],0))*Informācija[[#This Row],[PLĀNOTAIS DARBS]]","v":{"v":20000,"d":"20,000 EUR"}},{"$f":"INDEX(Parametri[],MATCH(Informācija[[#This Row],[PROJEKTA VEIDS]],Parametri[PROJEKTA VEIDS],0),MATCH(Informācija[[#Headers],[VISPĀRĪGS PARTNERIS]],Parametri[#Headers],0))*INDEX('PROJEKTA PARAMETRI'!$B$12:$H$12,1,MATCH(Informācija[[#Headers],[VISPĀRĪGS PARTNERIS]],Parametri[#Headers],0))*Informācija[[#This Row],[FAKTISKAIS DARBS]]","v":{"v":13650,"d":"13,650 EUR"}},{"$f":"INDEX(Parametri[],MATCH(Informācija[[#This Row],[PROJEKTA VEIDS]],Parametri[PROJEKTA VEIDS],0),MATCH(Informācija[[#Headers],[UZŅĒMUMA JURISTS]],Parametri[#Headers],0))*INDEX('PROJEKTA PARAMETRI'!$B$12:$H$12,1,MATCH(Informācija[[#Headers],[UZŅĒMUMA JURISTS]],Parametri[#Headers],0))*Informācija[[#This Row],[FAKTISKAIS DARBS]]","v":{"v":39000,"d":"39,000 EUR"}},{"$f":"INDEX(Parametri[],MATCH(Informācija[[#This Row],[PROJEKTA VEIDS]],Parametri[PROJEKTA VEIDS],0),MATCH(Informācija[[#Headers],[AIZSARDZĪBAS ADVOKĀTS]],Parametri[#Headers],0))*INDEX('PROJEKTA PARAMETRI'!$B$12:$H$12,1,MATCH(Informācija[[#Headers],[AIZSARDZĪBAS ADVOKĀTS]],Parametri[#Headers],0))*Informācija[[#This Row],[FAKTISKAIS DARBS]]","v":{"v":0,"d":"0 EUR"}},{"$f":"INDEX(Parametri[],MATCH(Informācija[[#This Row],[PROJEKTA VEIDS]],Parametri[PROJEKTA VEIDS],0),MATCH(Informācija[[#Headers],[INTELEKTUĀLĀ ĪPAŠUMA JURISTS]],Parametri[#Headers],0))*INDEX('PROJEKTA PARAMETRI'!$B$12:$H$12,1,MATCH(Informācija[[#Headers],[INTELEKTUĀLĀ ĪPAŠUMA JURISTS]],Parametri[#Headers],0))*Informācija[[#This Row],[FAKTISKAIS DARBS]]","v":{"v":10725,"d":"10,725 EUR"}},{"$f":"INDEX(Parametri[],MATCH(Informācija[[#This Row],[PROJEKTA VEIDS]],Parametri[PROJEKTA VEIDS],0),MATCH(Informācija[[#Headers],[BANKROTA JURISTS]],Parametri[#Headers],0))*INDEX('PROJEKTA PARAMETRI'!$B$12:$H$12,1,MATCH(Informācija[[#Headers],[BANKROTA JURISTS]],Parametri[#Headers],0))*Informācija[[#This Row],[FAKTISKAIS DARBS]]","v":{"v":0,"d":"0 EUR"}},{"$f":"INDEX(Parametri[],MATCH(Informācija[[#This Row],[PROJEKTA VEIDS]],Parametri[PROJEKTA VEIDS],0),MATCH(Informācija[[#Headers],[ADMINISTRATĪVIE DARBINIEKI]],Parametri[#Headers],0))*INDEX('PROJEKTA PARAMETRI'!$B$12:$H$12,1,MATCH(Informācija[[#Headers],[ADMINISTRATĪVIE DARBINIEKI]],Parametri[#Headers],0))*Informācija[[#This Row],[FAKTISKAIS DARBS]]","v":{"v":19500,"d":"19,500 EUR"}}]
[null,"3. projekts","Produktatbildības aizsardzība",{"$f":"TODAY()+150","v":"2019-07-20"},{"$f":"TODAY()+150","v":"2019-07-20"},{"$f":"TODAY()+150","v":"2019-07-20"},{"$f":"TODAY()+170","v":"2019-08-09"},500,500,{"$f":"DAYS360(Informācija[[#This Row],[PLĀNOTAIS SĀKUMS]],Informācija[[#This Row],[PLĀNOTĀS BEIGAS]],FALSE)","v":0},{"$f":"DAYS360(Informācija[[#This Row],[FAKTISKAIS SĀKUMS]],Informācija[[#This Row],[FAKTISKĀS BEIGAS]],FALSE)","v":19},{"$f":"INDEX(Parametri[],MATCH(Informācija[[#This Row],[PROJEKTA VEIDS]],Parametri[PROJEKTA VEIDS],0),MATCH(Informācija[[#Headers],[VISPĀRĪGS PARTNERIS]],Parametri[#Headers],0))*INDEX('PROJEKTA PARAMETRI'!$B$12:$H$12,1,MATCH(Informācija[[#Headers],[VISPĀRĪGS PARTNERIS]],Parametri[#Headers],0))*Informācija[[#This Row],[PLĀNOTAIS DARBS]]","v":{"v":35000,"d":"35,000 EUR"}},{"$f":"INDEX(Parametri[],MATCH(Informācija[[#This Row],[PROJEKTA VEIDS]],Parametri[PROJEKTA VEIDS],0),MATCH(Informācija[[#Headers],[UZŅĒMUMA JURISTS]],Parametri[#Headers],0))*INDEX('PROJEKTA PARAMETRI'!$B$12:$H$12,1,MATCH(Informācija[[#Headers],[UZŅĒMUMA JURISTS]],Parametri[#Headers],0))*Informācija[[#This Row],[PLĀNOTAIS DARBS]]","v":{"v":0,"d":"0 EUR"}},{"$f":"INDEX(Parametri[],MATCH(Informācija[[#This Row],[PROJEKTA VEIDS]],Parametri[PROJEKTA VEIDS],0),MATCH(Informācija[[#Headers],[AIZSARDZĪBAS ADVOKĀTS]],Parametri[#Headers],0))*INDEX('PROJEKTA PARAMETRI'!$B$12:$H$12,1,MATCH(Informācija[[#Headers],[AIZSARDZĪBAS ADVOKĀTS]],Parametri[#Headers],0))*Informācija[[#This Row],[PLĀNOTAIS DARBS]]","v":{"v":75000,"d":"75,000 EUR"}},{"$f":"INDEX(Parametri[],MATCH(Informācija[[#This Row],[PROJEKTA VEIDS]],Parametri[PROJEKTA VEIDS],0),MATCH(Informācija[[#Headers],[INTELEKTUĀLĀ ĪPAŠUMA JURISTS]],Parametri[#Headers],0))*INDEX('PROJEKTA PARAMETRI'!$B$12:$H$12,1,MATCH(Informācija[[#Headers],[INTELEKTUĀLĀ ĪPAŠUMA JURISTS]],Parametri[#Headers],0))*Informācija[[#This Row],[PLĀNOTAIS DARBS]]","v":{"v":0,"d":"0 EUR"}},{"$f":"INDEX(Parametri[],MATCH(Informācija[[#This Row],[PROJEKTA VEIDS]],Parametri[PROJEKTA VEIDS],0),MATCH(Informācija[[#Headers],[BANKROTA JURISTS]],Parametri[#Headers],0))*INDEX('PROJEKTA PARAMETRI'!$B$12:$H$12,1,MATCH(Informācija[[#Headers],[BANKROTA JURISTS]],Parametri[#Headers],0))*Informācija[[#This Row],[PLĀNOTAIS DARBS]]","v":{"v":0,"d":"0 EUR"}},{"$f":"INDEX(Parametri[],MATCH(Informācija[[#This Row],[PROJEKTA VEIDS]],Parametri[PROJEKTA VEIDS],0),MATCH(Informācija[[#Headers],[ADMINISTRATĪVIE DARBINIEKI]],Parametri[#Headers],0))*INDEX('PROJEKTA PARAMETRI'!$B$12:$H$12,1,MATCH(Informācija[[#Headers],[ADMINISTRATĪVIE DARBINIEKI]],Parametri[#Headers],0))*Informācija[[#This Row],[PLĀNOTAIS DARBS]]","v":{"v":18750,"d":"18,750 EUR"}},{"$f":"INDEX(Parametri[],MATCH(Informācija[[#This Row],[PROJEKTA VEIDS]],Parametri[PROJEKTA VEIDS],0),MATCH(Informācija[[#Headers],[VISPĀRĪGS PARTNERIS]],Parametri[#Headers],0))*INDEX('PROJEKTA PARAMETRI'!$B$12:$H$12,1,MATCH(Informācija[[#Headers],[VISPĀRĪGS PARTNERIS]],Parametri[#Headers],0))*Informācija[[#This Row],[FAKTISKAIS DARBS]]","v":{"v":35000,"d":"35,000 EUR"}},{"$f":"INDEX(Parametri[],MATCH(Informācija[[#This Row],[PROJEKTA VEIDS]],Parametri[PROJEKTA VEIDS],0),MATCH(Informācija[[#Headers],[UZŅĒMUMA JURISTS]],Parametri[#Headers],0))*INDEX('PROJEKTA PARAMETRI'!$B$12:$H$12,1,MATCH(Informācija[[#Headers],[UZŅĒMUMA JURISTS]],Parametri[#Headers],0))*Informācija[[#This Row],[FAKTISKAIS DARBS]]","v":{"v":0,"d":"0 EUR"}},{"$f":"INDEX(Parametri[],MATCH(Informācija[[#This Row],[PROJEKTA VEIDS]],Parametri[PROJEKTA VEIDS],0),MATCH(Informācija[[#Headers],[AIZSARDZĪBAS ADVOKĀTS]],Parametri[#Headers],0))*INDEX('PROJEKTA PARAMETRI'!$B$12:$H$12,1,MATCH(Informācija[[#Headers],[AIZSARDZĪBAS ADVOKĀTS]],Parametri[#Headers],0))*Informācija[[#This Row],[FAKTISKAIS DARBS]]","v":{"v":75000,"d":"75,000 EUR"}},{"$f":"INDEX(Parametri[],MATCH(Informācija[[#This Row],[PROJEKTA VEIDS]],Parametri[PROJEKTA VEIDS],0),MATCH(Informācija[[#Headers],[INTELEKTUĀLĀ ĪPAŠUMA JURISTS]],Parametri[#Headers],0))*INDEX('PROJEKTA PARAMETRI'!$B$12:$H$12,1,MATCH(Informācija[[#Headers],[INTELEKTUĀLĀ ĪPAŠUMA JURISTS]],Parametri[#Headers],0))*Informācija[[#This Row],[FAKTISKAIS DARBS]]","v":{"v":0,"d":"0 EUR"}},{"$f":"INDEX(Parametri[],MATCH(Informācija[[#This Row],[PROJEKTA VEIDS]],Parametri[PROJEKTA VEIDS],0),MATCH(Informācija[[#Headers],[BANKROTA JURISTS]],Parametri[#Headers],0))*INDEX('PROJEKTA PARAMETRI'!$B$12:$H$12,1,MATCH(Informācija[[#Headers],[BANKROTA JURISTS]],Parametri[#Headers],0))*Informācija[[#This Row],[FAKTISKAIS DARBS]]","v":{"v":0,"d":"0 EUR"}},{"$f":"INDEX(Parametri[],MATCH(Informācija[[#This Row],[PROJEKTA VEIDS]],Parametri[PROJEKTA VEIDS],0),MATCH(Informācija[[#Headers],[ADMINISTRATĪVIE DARBINIEKI]],Parametri[#Headers],0))*INDEX('PROJEKTA PARAMETRI'!$B$12:$H$12,1,MATCH(Informācija[[#Headers],[ADMINISTRATĪVIE DARBINIEKI]],Parametri[#Headers],0))*Informācija[[#This Row],[FAKTISKAIS DARBS]]","v":{"v":18750,"d":"18,750 EUR"}}]
[null,"4. projekts","Patenta pieteikums",{"$f":"TODAY()+200","v":"2019-09-08"},{"$f":"TODAY()+230","v":"2019-10-08"},{"$f":"TODAY()+230","v":"2019-10-08"},{"$f":"TODAY()+230","v":"2019-10-08"},150,145,{"$f":"DAYS360(Informācija[[#This Row],[PLĀNOTAIS SĀKUMS]],Informācija[[#This Row],[PLĀNOTĀS BEIGAS]],FALSE)","v":30},{"$f":"DAYS360(Informācija[[#This Row],[FAKTISKAIS SĀKUMS]],Informācija[[#This Row],[FAKTISKĀS BEIGAS]],FALSE)","v":0},{"$f":"INDEX(Parametri[],MATCH(Informācija[[#This Row],[PROJEKTA VEIDS]],Parametri[PROJEKTA VEIDS],0),MATCH(Informācija[[#Headers],[VISPĀRĪGS PARTNERIS]],Parametri[#Headers],0))*INDEX('PROJEKTA PARAMETRI'!$B$12:$H$12,1,MATCH(Informācija[[#Headers],[VISPĀRĪGS PARTNERIS]],Parametri[#Headers],0))*Informācija[[#This Row],[PLĀNOTAIS DARBS]]","v":{"v":5250,"d":"5,250 EUR"}},{"$f":"INDEX(Parametri[],MATCH(Informācija[[#This Row],[PROJEKTA VEIDS]],Parametri[PROJEKTA VEIDS],0),MATCH(Informācija[[#Headers],[UZŅĒMUMA JURISTS]],Parametri[#Headers],0))*INDEX('PROJEKTA PARAMETRI'!$B$12:$H$12,1,MATCH(Informācija[[#Headers],[UZŅĒMUMA JURISTS]],Parametri[#Headers],0))*Informācija[[#This Row],[PLĀNOTAIS DARBS]]","v":{"v":0,"d":"0 EUR"}},{"$f":"INDEX(Parametri[],MATCH(Informācija[[#This Row],[PROJEKTA VEIDS]],Parametri[PROJEKTA VEIDS],0),MATCH(Informācija[[#Headers],[AIZSARDZĪBAS ADVOKĀTS]],Parametri[#Headers],0))*INDEX('PROJEKTA PARAMETRI'!$B$12:$H$12,1,MATCH(Informācija[[#Headers],[AIZSARDZĪBAS ADVOKĀTS]],Parametri[#Headers],0))*Informācija[[#This Row],[PLĀNOTAIS DARBS]]","v":{"v":0,"d":"0 EUR"}},{"$f":"INDEX(Parametri[],MATCH(Informācija[[#This Row],[PROJEKTA VEIDS]],Parametri[PROJEKTA VEIDS],0),MATCH(Informācija[[#Headers],[INTELEKTUĀLĀ ĪPAŠUMA JURISTS]],Parametri[#Headers],0))*INDEX('PROJEKTA PARAMETRI'!$B$12:$H$12,1,MATCH(Informācija[[#Headers],[INTELEKTUĀLĀ ĪPAŠUMA JURISTS]],Parametri[#Headers],0))*Informācija[[#This Row],[PLĀNOTAIS DARBS]]","v":{"v":24750,"d":"24,750 EUR"}},{"$f":"INDEX(Parametri[],MATCH(Informācija[[#This Row],[PROJEKTA VEIDS]],Parametri[PROJEKTA VEIDS],0),MATCH(Informācija[[#Headers],[BANKROTA JURISTS]],Parametri[#Headers],0))*INDEX('PROJEKTA PARAMETRI'!$B$12:$H$12,1,MATCH(Informācija[[#Headers],[BANKROTA JURISTS]],Parametri[#Headers],0))*Informācija[[#This Row],[PLĀNOTAIS DARBS]]","v":{"v":0,"d":"0 EUR"}},{"$f":"INDEX(Parametri[],MATCH(Informācija[[#This Row],[PROJEKTA VEIDS]],Parametri[PROJEKTA VEIDS],0),MATCH(Informācija[[#Headers],[ADMINISTRATĪVIE DARBINIEKI]],Parametri[#Headers],0))*INDEX('PROJEKTA PARAMETRI'!$B$12:$H$12,1,MATCH(Informācija[[#Headers],[ADMINISTRATĪVIE DARBINIEKI]],Parametri[#Headers],0))*Informācija[[#This Row],[PLĀNOTAIS DARBS]]","v":{"v":5625,"d":"5,625 EUR"}},{"$f":"INDEX(Parametri[],MATCH(Informācija[[#This Row],[PROJEKTA VEIDS]],Parametri[PROJEKTA VEIDS],0),MATCH(Informācija[[#Headers],[VISPĀRĪGS PARTNERIS]],Parametri[#Headers],0))*INDEX('PROJEKTA PARAMETRI'!$B$12:$H$12,1,MATCH(Informācija[[#Headers],[VISPĀRĪGS PARTNERIS]],Parametri[#Headers],0))*Informācija[[#This Row],[FAKTISKAIS DARBS]]","v":{"v":5075,"d":"5,075 EUR"}},{"$f":"INDEX(Parametri[],MATCH(Informācija[[#This Row],[PROJEKTA VEIDS]],Parametri[PROJEKTA VEIDS],0),MATCH(Informācija[[#Headers],[UZŅĒMUMA JURISTS]],Parametri[#Headers],0))*INDEX('PROJEKTA PARAMETRI'!$B$12:$H$12,1,MATCH(Informācija[[#Headers],[UZŅĒMUMA JURISTS]],Parametri[#Headers],0))*Informācija[[#This Row],[FAKTISKAIS DARBS]]","v":{"v":0,"d":"0 EUR"}},{"$f":"INDEX(Parametri[],MATCH(Informācija[[#This Row],[PROJEKTA VEIDS]],Parametri[PROJEKTA VEIDS],0),MATCH(Informācija[[#Headers],[AIZSARDZĪBAS ADVOKĀTS]],Parametri[#Headers],0))*INDEX('PROJEKTA PARAMETRI'!$B$12:$H$12,1,MATCH(Informācija[[#Headers],[AIZSARDZĪBAS ADVOKĀTS]],Parametri[#Headers],0))*Informācija[[#This Row],[FAKTISKAIS DARBS]]","v":{"v":0,"d":"0 EUR"}},{"$f":"INDEX(Parametri[],MATCH(Informācija[[#This Row],[PROJEKTA VEIDS]],Parametri[PROJEKTA VEIDS],0),MATCH(Informācija[[#Headers],[INTELEKTUĀLĀ ĪPAŠUMA JURISTS]],Parametri[#Headers],0))*INDEX('PROJEKTA PARAMETRI'!$B$12:$H$12,1,MATCH(Informācija[[#Headers],[INTELEKTUĀLĀ ĪPAŠUMA JURISTS]],Parametri[#Headers],0))*Informācija[[#This Row],[FAKTISKAIS DARBS]]","v":{"v":23925,"d":"23,925 EUR"}},{"$f":"INDEX(Parametri[],MATCH(Informācija[[#This Row],[PROJEKTA VEIDS]],Parametri[PROJEKTA VEIDS],0),MATCH(Informācija[[#Headers],[BANKROTA JURISTS]],Parametri[#Headers],0))*INDEX('PROJEKTA PARAMETRI'!$B$12:$H$12,1,MATCH(Informācija[[#Headers],[BANKROTA JURISTS]],Parametri[#Headers],0))*Informācija[[#This Row],[FAKTISKAIS DARBS]]","v":{"v":0,"d":"0 EUR"}},{"$f":"INDEX(Parametri[],MATCH(Informācija[[#This Row],[PROJEKTA VEIDS]],Parametri[PROJEKTA VEIDS],0),MATCH(Informācija[[#Headers],[ADMINISTRATĪVIE DARBINIEKI]],Parametri[#Headers],0))*INDEX('PROJEKTA PARAMETRI'!$B$12:$H$12,1,MATCH(Informācija[[#Headers],[ADMINISTRATĪVIE DARBINIEKI]],Parametri[#Headers],0))*Informācija[[#This Row],[FAKTISKAIS DARBS]]","v":{"v":5437.5,"d":"5,438 EUR"}}]
[null,"5. projekts","Darbinieka tiesas process",{"$f":"TODAY()+220","v":"2019-09-28"},{"$f":"TODAY()+250","v":"2019-10-28"},{"$f":"TODAY()+230","v":"2019-10-08"},{"$f":"TODAY()+259","v":"2019-11-06"},250,255,{"$f":"DAYS360(Informācija[[#This Row],[PLĀNOTAIS SĀKUMS]],Informācija[[#This Row],[PLĀNOTĀS BEIGAS]],FALSE)","v":30},{"$f":"DAYS360(Informācija[[#This Row],[FAKTISKAIS SĀKUMS]],Informācija[[#This Row],[FAKTISKĀS BEIGAS]],FALSE)","v":28},{"$f":"INDEX(Parametri[],MATCH(Informācija[[#This Row],[PROJEKTA VEIDS]],Parametri[PROJEKTA VEIDS],0),MATCH(Informācija[[#Headers],[VISPĀRĪGS PARTNERIS]],Parametri[#Headers],0))*INDEX('PROJEKTA PARAMETRI'!$B$12:$H$12,1,MATCH(Informācija[[#Headers],[VISPĀRĪGS PARTNERIS]],Parametri[#Headers],0))*Informācija[[#This Row],[PLĀNOTAIS DARBS]]","v":{"v":17500,"d":"17,500 EUR"}},{"$f":"INDEX(Parametri[],MATCH(Informācija[[#This Row],[PROJEKTA VEIDS]],Parametri[PROJEKTA VEIDS],0),MATCH(Informācija[[#Headers],[UZŅĒMUMA JURISTS]],Parametri[#Headers],0))*INDEX('PROJEKTA PARAMETRI'!$B$12:$H$12,1,MATCH(Informācija[[#Headers],[UZŅĒMUMA JURISTS]],Parametri[#Headers],0))*Informācija[[#This Row],[PLĀNOTAIS DARBS]]","v":{"v":6250,"d":"6,250 EUR"}},{"$f":"INDEX(Parametri[],MATCH(Informācija[[#This Row],[PROJEKTA VEIDS]],Parametri[PROJEKTA VEIDS],0),MATCH(Informācija[[#Headers],[AIZSARDZĪBAS ADVOKĀTS]],Parametri[#Headers],0))*INDEX('PROJEKTA PARAMETRI'!$B$12:$H$12,1,MATCH(Informācija[[#Headers],[AIZSARDZĪBAS ADVOKĀTS]],Parametri[#Headers],0))*Informācija[[#This Row],[PLĀNOTAIS DARBS]]","v":{"v":30000,"d":"30,000 EUR"}},{"$f":"INDEX(Parametri[],MATCH(Informācija[[#This Row],[PROJEKTA VEIDS]],Parametri[PROJEKTA VEIDS],0),MATCH(Informācija[[#Headers],[INTELEKTUĀLĀ ĪPAŠUMA JURISTS]],Parametri[#Headers],0))*INDEX('PROJEKTA PARAMETRI'!$B$12:$H$12,1,MATCH(Informācija[[#Headers],[INTELEKTUĀLĀ ĪPAŠUMA JURISTS]],Parametri[#Headers],0))*Informācija[[#This Row],[PLĀNOTAIS DARBS]]","v":{"v":0,"d":"0 EUR"}},{"$f":"INDEX(Parametri[],MATCH(Informācija[[#This Row],[PROJEKTA VEIDS]],Parametri[PROJEKTA VEIDS],0),MATCH(Informācija[[#Headers],[BANKROTA JURISTS]],Parametri[#Headers],0))*INDEX('PROJEKTA PARAMETRI'!$B$12:$H$12,1,MATCH(Informācija[[#Headers],[BANKROTA JURISTS]],Parametri[#Headers],0))*Informācija[[#This Row],[PLĀNOTAIS DARBS]]","v":{"v":0,"d":"0 EUR"}},{"$f":"INDEX(Parametri[],MATCH(Informācija[[#This Row],[PROJEKTA VEIDS]],Parametri[PROJEKTA VEIDS],0),MATCH(Informācija[[#Headers],[ADMINISTRATĪVIE DARBINIEKI]],Parametri[#Headers],0))*INDEX('PROJEKTA PARAMETRI'!$B$12:$H$12,1,MATCH(Informācija[[#Headers],[ADMINISTRATĪVIE DARBINIEKI]],Parametri[#Headers],0))*Informācija[[#This Row],[PLĀNOTAIS DARBS]]","v":{"v":9375,"d":"9,375 EUR"}},{"$f":"INDEX(Parametri[],MATCH(Informācija[[#This Row],[PROJEKTA VEIDS]],Parametri[PROJEKTA VEIDS],0),MATCH(Informācija[[#Headers],[VISPĀRĪGS PARTNERIS]],Parametri[#Headers],0))*INDEX('PROJEKTA PARAMETRI'!$B$12:$H$12,1,MATCH(Informācija[[#Headers],[VISPĀRĪGS PARTNERIS]],Parametri[#Headers],0))*Informācija[[#This Row],[FAKTISKAIS DARBS]]","v":{"v":17850,"d":"17,850 EUR"}},{"$f":"INDEX(Parametri[],MATCH(Informācija[[#This Row],[PROJEKTA VEIDS]],Parametri[PROJEKTA VEIDS],0),MATCH(Informācija[[#Headers],[UZŅĒMUMA JURISTS]],Parametri[#Headers],0))*INDEX('PROJEKTA PARAMETRI'!$B$12:$H$12,1,MATCH(Informācija[[#Headers],[UZŅĒMUMA JURISTS]],Parametri[#Headers],0))*Informācija[[#This Row],[FAKTISKAIS DARBS]]","v":{"v":6375,"d":"6,375 EUR"}},{"$f":"INDEX(Parametri[],MATCH(Informācija[[#This Row],[PROJEKTA VEIDS]],Parametri[PROJEKTA VEIDS],0),MATCH(Informācija[[#Headers],[AIZSARDZĪBAS ADVOKĀTS]],Parametri[#Headers],0))*INDEX('PROJEKTA PARAMETRI'!$B$12:$H$12,1,MATCH(Informācija[[#Headers],[AIZSARDZĪBAS ADVOKĀTS]],Parametri[#Headers],0))*Informācija[[#This Row],[FAKTISKAIS DARBS]]","v":{"v":30600,"d":"30,600 EUR"}},{"$f":"INDEX(Parametri[],MATCH(Informācija[[#This Row],[PROJEKTA VEIDS]],Parametri[PROJEKTA VEIDS],0),MATCH(Informācija[[#Headers],[INTELEKTUĀLĀ ĪPAŠUMA JURISTS]],Parametri[#Headers],0))*INDEX('PROJEKTA PARAMETRI'!$B$12:$H$12,1,MATCH(Informācija[[#Headers],[INTELEKTUĀLĀ ĪPAŠUMA JURISTS]],Parametri[#Headers],0))*Informācija[[#This Row],[FAKTISKAIS DARBS]]","v":{"v":0,"d":"0 EUR"}},{"$f":"INDEX(Parametri[],MATCH(Informācija[[#This Row],[PROJEKTA VEIDS]],Parametri[PROJEKTA VEIDS],0),MATCH(Informācija[[#Headers],[BANKROTA JURISTS]],Parametri[#Headers],0))*INDEX('PROJEKTA PARAMETRI'!$B$12:$H$12,1,MATCH(Informācija[[#Headers],[BANKROTA JURISTS]],Parametri[#Headers],0))*Informācija[[#This Row],[FAKTISKAIS DARBS]]","v":{"v":0,"d":"0 EUR"}},{"$f":"INDEX(Parametri[],MATCH(Informācija[[#This Row],[PROJEKTA VEIDS]],Parametri[PROJEKTA VEIDS],0),MATCH(Informācija[[#Headers],[ADMINISTRATĪVIE DARBINIEKI]],Parametri[#Headers],0))*INDEX('PROJEKTA PARAMETRI'!$B$12:$H$12,1,MATCH(Informācija[[#Headers],[ADMINISTRATĪVIE DARBINIEKI]],Parametri[#Headers],0))*Informācija[[#This Row],[FAKTISKAIS DARBS]]","v":{"v":9562.5,"d":"9,563 EUR"}}]
[null,"Kopsumma",{"$nulls":5},{"$f":"SUBTOTAL(109,Informācija[PLĀNOTAIS DARBS])","v":1500},{"$f":"SUBTOTAL(109,Informācija[FAKTISKAIS DARBS])","v":1510},{"$f":"SUBTOTAL(109,Informācija[PLĀNOTAIS ILGUMS])","v":190},{"$f":"SUBTOTAL(109,Informācija[FAKTISKAIS ILGUMS])","v":170}]

{"sheet":"PROJEKTA KOPSUMMAS","index":3,"n_rows":11,"n_cols":16,"rows_kept":11,"merged":[[3,2,3,7],[3,8,3,13],[3,15,14,19]]}
["Šajā darblapā iegūstiet projekta kopsummas. Šūnā pa labi tiek automātiski atjaunināts uzņēmuma nosaukums Šīs kolonnas šūnās ir noderīgi norādījumi. Bultiņa uz leju, lai sāktu darbu.",{"$f":"'PROJEKTA PARAMETRI'!B1","v":"Uzņēmuma nosaukums"}]
["Šīs darblapas nosaukums ir šūnā pa labi.",{"$f":"'PROJEKTA PARAMETRI'!B2","v":"Projektu plānošana juridiskajiem uzņēmumiem"}]
["Konfidencialitātes ziņojums ir šūnā pa labi.",{"$f":"'PROJEKTA PARAMETRI'!B3","v":"Uzņēmuma nosaukums , konfidenciāli"}]
["Etiķete Plānotie ir šūnā C4, etiķete Faktiskie ir šūnā I4 un informatīvais padoms ir šūnā P4.",null,"PROGNOZĒTIE",{"$nulls":5},"FAKTISKIE",{"$nulls":6},"INFORMĀCIJA. \nŠī rakurstabula netiks atsvaidzināta automātiski.  Lai to atsvaidzinātu rakurstabulu labajā pusē, atlasiet to (jebkuru šūnu rakurstabulā) un lentes cilnē RAKURSTABULU RĪKI | ANALĪZE atlasiet Atsvaidzināt.  Vai arī nospiediet taustiņu kombināciju SHIFT+F10, atlasot rakurstabulu, un atlasiet Atsvaidzināt."]
["Rakurstabula, kas sākas šūnā pa labi, tiek atjaunināta automātiski.","PROJEKTA NOSAUKUMS","VISPĀRĪGS PARTNERIS  ","UZŅĒMUMS","AIZSARDZĪBAS ADVOKĀTS  ","INTELEKTUĀLAIS ĪPAŠUMS","BANKROTS","ADMINISTRATĪVIE DARBINIEKI  ","VISPĀRĪGS PARTNERIS ","UZŅĒMUMS ","AIZSARDZĪBAS ADVOKĀTS ","BANKROTS ","INTELEKTUĀLAIS ĪPAŠUMS ","ADMINISTRATĪVIE DARBINIEKI "]
[null,"1. projekts",{"v":7000,"d":"7,000.00 EUR"},{"v":20000,"d":"20,000.00 EUR"},{"v":0,"d":"0.00 EUR"},{"v":0,"d":"0.00 EUR"},{"v":0,"d":"0.00 EUR"},{"v":12500,"d":"12,500.00 EUR"},{"v":7700,"d":"7,700.00 EUR"},{"v":22000,"d":"22,000.00 EUR"},{"v":0,"d":"0.00 EUR"},{"v":0,"d":"0.00 EUR"},{"v":0,"d":"0.00 EUR"},{"v":13750,"d":"13,750.00 EUR"}]
[null,"2. projekts",{"v":14000,"d":"14,000.00 EUR"},{"v":40000,"d":"40,000.00 EUR"},{"v":0,"d":"0.00 EUR"},{"v":11000,"d":"11,000.00 EUR"},{"v":0,"d":"0.00 EUR"},{"v":20000,"d":"20,000.00 EUR"},{"v":13650,"d":"13,650.00 EUR"},{"v":39000,"d":"39,000.00 EUR"},{"v":0,"d":"0.00 EUR"},{"v":10725,"d":"10,725.00 EUR"},{"v":0,"d":"0.00 EUR"},{"v":19500,"d":"19,500.00 EUR"}]
[null,"3. projekts",{"v":35000,"d":"35,000.00 EUR"},{"v":0,"d":"0.00 EUR"},{"v":75000,"d":"75,000.00 EUR"},{"v":0,"d":"0.00 EUR"},{"v":0,"d":"0.00 EUR"},{"v":18750,"d":"18,750.00 EUR"},{"v":35000,"d":"35,000.00 EUR"},{"v":0,"d":"0.00 EUR"},{"v":75000,"d":"75,000.00 EUR"},{"v":0,"d":"0.00 EUR"},{"v":0,"d":"0.00 EUR"},{"v":18750,"d":"18,750.00 EUR"}]
[null,"4. projekts",{"v":5250,"d":"5,250.00 EUR"},{"v":0,"d":"0.00 EUR"},{"v":0,"d":"0.00 EUR"},{"v":24750,"d":"24,750.00 EUR"},{"v":0,"d":"0.00 EUR"},{"v":5625,"d":"5,625.00 EUR"},{"v":5075,"d":"5,075.00 EUR"},{"v":0,"d":"0.00 EUR"},{"v":0,"d":"0.00 EUR"},{"v":23925,"d":"23,925.00 EUR"},{"v":0,"d":"0.00 EUR"},{"v":5437.5,"d":"5,437.50 EUR"}]
[null,"5. projekts",{"v":17500,"d":"17,500.00 EUR"},{"v":6250,"d":"6,250.00 EUR"},{"v":30000,"d":"30,000.00 EUR"},{"v":0,"d":"0.00 EUR"},{"v":0,"d":"0.00 EUR"},{"v":9375,"d":"9,375.00 EUR"},{"v":17850,"d":"17,850.00 EUR"},{"v":6375,"d":"6,375.00 EUR"},{"v":30600,"d":"30,600.00 EUR"},{"v":0,"d":"0.00 EUR"},{"v":0,"d":"0.00 EUR"},{"v":9562.5,"d":"9,562.50 EUR"}]
[null,"Gala summa",{"v":78750,"d":"78,750.00 EUR"},{"v":66250,"d":"66,250.00 EUR"},{"v":105000,"d":"105,000.00 EUR"},{"v":35750,"d":"35,750.00 EUR"},{"v":0,"d":"0.00 EUR"},{"v":66250,"d":"66,250.00 EUR"},{"v":79275,"d":"79,275.00 EUR"},{"v":67375,"d":"67,375.00 EUR"},{"v":105600,"d":"105,600.00 EUR"},{"v":34650,"d":"34,650.00 EUR"},{"v":0,"d":"0.00 EUR"},{"v":67000,"d":"67,000.00 EUR"}]